fUST/lending_fUST_20250607
["ID","MTS","AMOUNT","RATE_DAILY","PERIOD"]
[364817578,1749252641189,-692.98,0.00019726,2]
[364817580,1749252641198,-440.0,0.00019726,2]
[364817582,1749252641208,-410.0,0.00019726,2]
[364817584,1749252641217,-410.0,0.00019726,2]
[364817586,1749252641226,-410.0,0.00019726,2]
[364817588,1749252641235,-410.0,0.00019726,2]
[364817590,1749252641245,-410.0,0.00019726,2]
[364817592,1749252641254,-440.0,0.00019726,2]
[364817594,1749252641263,-410.0,0.00019726,2]
[364817596,1749252641273,-410.0,0.00019726,2]
[364817598,1749252641282,-1107.19,0.00019726,2]
[364817600,1749252641291,-410.0,0.00019726,2]
[364817602,1749252641301,-420.0,0.00019791,2]
[364817604,1749252641310,-1592.61610464,0.000199,2]
[364817606,1749252641320,-3902.06800884,0.0002,2]
[364817608,1749252641330,-398.24067093,0.0002,2]
[364817610,1749252641339,-440.0,0.0002,2]
[364817612,1749252641348,-440.0,0.0002,2]
[364817614,1749252641357,-440.0,0.0002,2]
[364817616,1749252641367,-400.0,0.0002,2]
[364817618,1749252641377,-440.0,0.0002,2]
[364817620,1749252641386,-400.0,0.0002,2]
[364817622,1749252641396,-400.0,0.0002,2]
[364817624,1749252641406,-440.0,0.0002,2]
[364817626,1749252641415,-330.0125495,0.0002,2]
[364817628,1749252641424,-400.0,0.0002,2]
[364817630,1749252641433,-400.0,0.0002,2]
[364817632,1749252641443,-400.0,0.0002,2]
[364817634,1749252641452,-419.77186532,0.0002,2]
[364817636,1749252641461,-500.0,0.0002,2]
[364817638,1749252641474,-400.0,0.0002,2]
[364817640,1749252641484,-440.0,0.0002,2]
[364817643,1749252641494,-400.0,0.0002,2]
[364817645,1749252641503,-533.64,0.0002,2]
[364817646,1749252641513,-440.0,0.0002,2]
[364817648,1749252641522,-400.0,0.0002,2]
[364817661,1749252641632,-400.0,0.0002,2]
[364817663,1749252641646,-440.0,0.0002,2]
[364817666,1749252641657,-952.99,0.0002,2]
[364817668,1749252641666,-440.0,0.0002,2]
[364817670,1749252641676,-440.0,0.0002,2]
[364817672,1749252641685,-1486.63,0.0002,2]
[364817674,1749252641695,-706.66,0.0002,2]
[364817675,1749252641704,-1429.91,0.0002,2]
[364817676,1749252641713,-400.0,0.0002,2]
[364817677,1749252641723,-581.43,0.0002,2]
[364817678,1749252641732,-458.87,0.0002,2]
[364817679,1749252641741,-440.0,0.0002,2]
[364817680,1749252641752,-576.56723153,0.0002,2]
[364817682,1749252641761,-440.0,0.0002,2]
[364817683,1749252641771,-440.0,0.0002,2]
[364817684,1749252641780,-440.0,0.0002,2]
[364817685,1749252641790,-440.0,0.0002,2]
[364817686,1749252641799,-363.27,0.0002,2]
[364817687,1749252641808,-792.69,0.0002,2]
[364817688,1749252641818,-440.0,0.0002,2]
[364817689,1749252641828,-440.0,0.0002,2]
[364817690,1749252641838,-440.0,0.0002,2]
[364817691,1749252641847,-440.0,0.0002,2]
[364817692,1749252641856,-400.0,0.0002,2]
[364817693,1749252641866,-440.0,0.0002,2]
[364817694,1749252641876,-440.0,0.0002,2]
[364817695,1749252641885,-440.0,0.0002,2]
[364817696,1749252641895,-440.0,0.0002,2]
[364817697,1749252641904,-12749.55395623,0.0002,2]
[364817698,1749252641914,-440.0,0.0002,2]
[364817699,1749252641924,-580.83,0.0002,2]
[364817700,1749252641933,-839.32,0.0002,2]
[364817701,1749252641943,-279.3624991,0.0002,2]
[364817702,1749252641952,-440.0,0.0002,2]
[364817703,1749252641962,-440.0,0.0002,2]
[364817704,1749252641971,-440.0,0.0002,2]
[364817705,1749252641981,-440.0,0.0002,2]
[364817706,1749252641990,-440.0,0.0002,2]
[364817707,1749252642000,-335.76,0.0002,2]
[364817708,1749252642010,-440.0,0.0002,2]
[364817709,1749252642019,-586.65,0.0002,2]
[364817710,1749252642029,-440.0,0.0002,2]
[364817711,1749252642038,-440.0,0.0002,2]
[364817712,1749252642047,-440.0,0.0002,2]
[364817713,1749252642057,-440.0,0.0002,2]
[364817714,1749252642066,-1731.07,0.0002,2]
[364817715,1749252642075,-440.0,0.0002,2]
[364817716,1749252642086,-440.0,0.0002,2]
[364817717,1749252642096,-1647.03,0.0002,2]
[364817718,1749252642105,-667.33,0.0002,2]
[364817719,1749252642115,-758.27,0.0002,2]
[364817720,1749252642124,-440.0,0.0002,2]
[364817721,1749252642133,-440.0,0.0002,2]
[364817722,1749252642143,-692.98,0.0002,2]
[364817723,1749252642152,-440.0,0.0002,2]
[364817724,1749252642161,-1107.19,0.0002,2]
[364817725,1749252642171,-1000.0,0.00020052,2]
[364817726,1749252642180,-160.0,0.00020063,2]
[364817727,1749252642190,-1592.61610463,0.00020072,2]
[364817728,1749252642199,-212.976918,0.00020086,2]
[364817729,1749252642209,-160.0,0.00020086,2]
[364817730,1749252642218,-160.0,0.00020086,2]
[364817731,1749252642228,-423.83542519,0.00020086,2]
[364817732,1749252642237,-229.52673067,0.00020086,2]
[364817733,1749252642246,-834.50537533,0.00020086,2]
[364817734,1749252642256,-315.04936747,0.00020086,2]
[364817735,1749252642265,-160.0,0.00020086,2]
[364817736,1749252642274,-231.717,0.00020126,2]
[364817737,1749252642284,-337.937186,0.00020187,2]
[364817738,1749252642293,-207.4,0.00020203,2]
[364817739,1749252642304,-267.43501615,0.00020234,2]
[364817740,1749252642314,-1592.61610463,0.00020245,2]
[364817741,1749252642324,-440.0,0.00020273,2]
[364817742,1749252642334,-440.0,0.00020273,2]
[364817743,1749252642344,-440.0,0.00020273,2]
[364817744,1749252642353,-440.0,0.00020273,2]
[364817745,1749252642362,-414.453377,0.00020273,2]
[364817746,1749252642371,-440.0,0.00020273,2]
[364817747,1749252642380,-440.0,0.00020273,2]
[364817748,1749252642389,-290.29,0.00020273,2]
[364817749,1749252642399,-952.99,0.00020273,2]
[364817750,1749252642408,-568.97,0.00020273,2]
[364817751,1749252642418,-440.0,0.00020273,2]
[364817752,1749252642428,-1486.63,0.00020273,2]
[364817754,1749252642437,-706.66,0.00020273,2]
[364817756,1749252642446,-1429.91,0.00020273,2]
[364817758,1749252642456,-581.43,0.00020273,2]
[364817759,1749252642469,-458.87,0.00020273,2]
[364817760,1749252642479,-440.0,0.00020273,2]
[364817761,1749252642491,-440.0,0.00020273,2]
[364817762,1749252642501,-440.0,0.00020273,2]
[364817763,1749252642512,-440.0,0.00020273,2]
[364817764,1749252642521,-440.0,0.00020273,2]
[364817765,1749252642531,-792.69,0.00020273,2]
[364817766,1749252642542,-440.0,0.00020273,2]
[364817767,1749252642555,-570.53,0.00020273,2]
[364817768,1749252642565,-421.45901827,0.00020273,2]
[364817769,1749252642576,-440.0,0.00020273,2]
[364817770,1749252642586,-390.0,0.00020273,2]
[364817771,1749252642596,-440.0,0.00020273,2]
[364817772,1749252642605,-440.0,0.00020273,2]
[364817773,1749252642615,-440.0,0.00020273,2]
[364817774,1749252642625,-440.0,0.00020273,2]
[364817775,1749252642634,-580.83,0.00020273,2]
[364817776,1749252642644,-839.32,0.00020273,2]
[364817777,1749252642653,-440.0,0.00020273,2]
[364817778,1749252642663,-440.0,0.00020273,2]
[364817779,1749252642673,-440.0,0.00020273,2]
[364817780,1749252642683,-440.0,0.00020273,2]
[364817781,1749252642692,-440.0,0.00020273,2]
[364817782,1749252642701,-440.0,0.00020273,2]
[364817783,1749252642710,-440.0,0.00020273,2]
[364817784,1749252642719,-171.06,0.00020273,2]
[364817785,1749252642729,-440.0,0.00020273,2]
[364817786,1749252642738,-440.0,0.00020273,2]
[364817787,1749252642747,-1731.07,0.00020273,2]
[364817788,1749252642756,-440.0,0.00020273,2]
[364817789,1749252642765,-440.0,0.00020273,2]
[364817790,1749252642774,-1647.03,0.00020273,2]
[364817791,1749252642783,-667.33,0.00020273,2]
[364817792,1749252642794,-758.27,0.00020273,2]
[364817793,1749252642803,-440.0,0.00020273,2]
[364817794,1749252642812,-440.0,0.00020273,2]
[364817795,1749252642822,-692.98,0.00020273,2]
[364817796,1749252642831,-440.0,0.00020273,2]
[364817797,1749252642840,-1107.19,0.00020273,2]
[364817798,1749252642849,-1592.61610463,0.00020417,3]
[364817799,1749252642858,-2221.26,0.00020538,3]
[364817800,1749252642867,-2697.26,0.00020538,3]
[364817801,1749252642876,-1348.62,0.00020538,3]
[364817802,1749252642886,-674.32,0.00020538,3]
[364817803,1749252642895,-337.16,0.00020538,3]
[364817804,1749252642904,-315.04936747,0.00020538,3]
[364817805,1749252642913,-440.0,0.00020547,2]
[364817806,1749252642922,-440.0,0.00020547,2]
[364817807,1749252642932,-440.0,0.00020547,2]
[364817808,1749252642941,-500.0,0.00020547,2]
[364817809,1749252642951,-433.36,0.00020547,2]
[364817810,1749252642960,-270.8,0.00020547,2]
[364817811,1749252642969,-440.0,0.00020547,2]
[364817812,1749252642979,-952.99,0.00020547,2]
[364817813,1749252642988,-440.0,0.00020547,2]
[364817814,1749252642997,-1486.63,0.00020547,2]
[364817815,1749252643006,-706.66,0.00020547,2]
[364817816,1749252643016,-1429.91,0.00020547,2]
[364817817,1749252643025,-581.43,0.00020547,2]
[364817818,1749252643034,-458.87,0.00020547,2]
[364817820,1749252643044,-440.0,0.00020547,2]
[364817821,1749252643053,-440.0,0.00020547,2]
[364817822,1749252643063,-440.0,0.00020547,2]
[364817823,1749252643072,-440.0,0.00020547,2]
[364817824,1749252643083,-440.0,0.00020547,2]
[364817825,1749252643092,-792.69,0.00020547,2]
[364817826,1749252643102,-440.0,0.00020547,2]
[364817827,1749252643112,-440.0,0.00020547,2]
[364817828,1749252643123,-440.0,0.00020547,2]
[364817829,1749252643133,-440.0,0.00020547,2]
[364817830,1749252643142,-360.0,0.00020547,2]
[364817831,1749252643152,-202.32,0.00020547,2]
[364817832,1749252643162,-580.83,0.00020547,2]
[364817833,1749252643172,-839.32,0.00020547,2]
[364817834,1749252643181,-440.0,0.00020547,2]
[364817835,1749252643192,-248.01,0.00020547,2]
[364817836,1749252643202,-440.0,0.00020547,2]
[364817837,1749252643212,-440.0,0.00020547,2]
[364817838,1749252643221,-440.0,0.00020547,2]
[364817839,1749252643231,-440.0,0.00020547,2]
[364817840,1749252643240,-440.0,0.00020547,2]
[364817841,1749252643250,-440.0,0.00020547,2]
[364817842,1749252643260,-440.0,0.00020547,2]
[364817843,1749252643270,-1731.07,0.00020547,2]
[364817844,1749252643280,-498.3272955,0.00020547,2]
[364817845,1749252643290,-440.0,0.00020547,2]
[364817846,1749252643300,-1647.03,0.00020547,2]
[364817847,1749252643309,-667.33,0.00020547,2]
[364817848,1749252643318,-758.27,0.00020547,2]
[364817849,1749252643329,-440.0,0.00020547,2]
[364817850,1749252643338,-440.0,0.00020547,2]
[364817851,1749252643347,-692.98,0.00020547,2]
[364817852,1749252643357,-440.0,0.00020547,2]
[364817853,1749252643366,-1107.19,0.00020547,2]
[364817854,1749252643376,-500.0,0.00020548,2]
[364817855,1749252643385,-508.57450474,0.00020548,2]
[364817856,1749252643394,-500.0,0.00020548,2]
[364817857,1749252643404,-1592.61610463,0.0002059,3]
[364817858,1749252643413,-1045.62,0.000206,2]
[364817859,1749252643422,-660.09,0.000206,2]
[364817860,1749252643431,-1592.61610463,0.00020762,3]
[364817861,1749252643440,-151.0,0.00020821,2]
[364817862,1749252643449,-440.0,0.00020821,2]
[364817863,1749252643458,-440.0,0.00020821,2]
[364817864,1749252643470,-952.99,0.00020821,2]
[364817865,1749252643480,-1486.63,0.00020821,2]
[364817866,1749252643489,-706.66,0.00020821,2]
[364817867,1749252643498,-1429.91,0.00020821,2]
[364817868,1749252643509,-581.43,0.00020821,2]
[364817869,1749252643518,-322.68551914,0.00020821,2]
[364817870,1749252643635,-136.18448086,0.00020821,2]
[364817871,1749252643644,-440.0,0.00020821,2]
[364817872,1749252643653,-440.0,0.00020821,2]
[364817873,1749252643662,-440.0,0.00020821,2]
[364817874,1749252643672,-440.0,0.00020821,2]
[364817875,1749252643681,-792.69,0.00020821,2]
[364817876,1749252643690,-440.0,0.00020821,2]
[364817877,1749252643700,-440.0,0.00020821,2]
[364817878,1749252643709,-580.83,0.00020821,2]
[364817879,1749252643718,-839.32,0.00020821,2]
[364817880,1749252643727,-440.0,0.00020821,2]
[364817881,1749252643736,-440.0,0.00020821,2]
[364817882,1749252643746,-440.0,0.00020821,2]
[364817883,1749252643756,-440.0,0.00020821,2]
[364817884,1749252643765,-440.0,0.00020821,2]
[364817885,1749252643774,-440.0,0.00020821,2]
[364817886,1749252643783,-271.97844404,0.00020821,2]
[364817887,1749252643794,-1731.07,0.00020821,2]
[364817888,1749252643803,-440.0,0.00020821,2]
[364817889,1749252643813,-1647.03,0.00020821,2]
[364817890,1749252643823,-667.33,0.00020821,2]
[364817891,1749252643833,-758.27,0.00020821,2]
[364817892,1749252643843,-440.0,0.00020821,2]
[364817893,1749252643852,-692.98,0.00020821,2]
[364817894,1749252643862,-440.0,0.00020821,2]
[364817895,1749252643871,-1107.19,0.00020821,2]
[364817896,1749252643881,-420.0,0.00020867,2]
[364817897,1749252643890,-1592.61610463,0.00020934,4]
[364817898,1749252643900,-440.0,0.00021095,2]
[364817899,1749252643909,-440.0,0.00021095,2]
[364817900,1749252643919,-500.0,0.00021095,3]
[364817901,1749252643928,-952.99,0.00021095,2]
[364817902,1749252643938,-1486.63,0.00021095,2]
[364817903,1749252643948,-706.66,0.00021095,2]
[364817904,1749252643958,-1429.91,0.00021095,2]
[364817905,1749252643967,-581.43,0.00021095,2]
[364817906,1749252643976,-458.87,0.00021095,2]
[364817907,1749252643985,-440.0,0.00021095,2]
[364817908,1749252643995,-420.0,0.00021095,2]
[364817909,1749252644005,-792.69,0.00021095,2]
[364817910,1749252644014,-580.83,0.00021095,2]
[364817911,1749252644024,-839.32,0.00021095,2]
[364817912,1749252644034,-440.0,0.00021095,2]
[364817913,1749252644043,-440.0,0.00021095,2]
[364817914,1749252644053,-440.0,0.00021095,2]
[364817915,1749252644062,-440.0,0.00021095,2]
[364817916,1749252644071,-1731.07,0.00021095,2]
[364817917,1749252644081,-1647.03,0.00021095,2]
[364817918,1749252644091,-667.33,0.00021095,2]
[364817919,1749252644100,-758.27,0.00021095,2]
[364817920,1749252644110,-692.98,0.00021095,2]
[364817921,1749252644119,-1107.19,0.00021095,2]
[364817922,1749252644129,-1592.61610463,0.00021107,4]
[364817923,1749252644138,-1000.0,0.00021148,2]
[364817924,1749252644148,-1592.61610463,0.00021279,5]
[364817925,1749252644157,-500.0,0.0002129,2]
[364817926,1749252644166,-440.0,0.00021369,2]
[364817927,1749252644175,-440.0,0.00021369,2]
[364817928,1749252644185,-952.99,0.00021369,2]
[364817929,1749252644194,-1486.63,0.00021369,2]
[364817930,1749252644204,-706.66,0.00021369,2]
[364817931,1749252644213,-1429.91,0.00021369,2]
[364817932,1749252644222,-581.43,0.00021369,2]
[364817933,1749252644231,-458.87,0.00021369,2]
[364817934,1749252644240,-428.74,0.00021369,2]
[364817935,1749252644250,-792.69,0.00021369,2]
[364817936,1749252644260,-580.83,0.00021369,2]
[364817937,1749252644270,-839.32,0.00021369,2]
[364817938,1749252644279,-440.0,0.00021369,2]
[364817939,1749252644290,-315.79249555,0.00021369,2]
[364817940,1749252644300,-364.1,0.00021369,2]
[364817941,1749252644310,-1731.07,0.00021369,2]
[364817942,1749252644320,-1647.03,0.00021369,2]
[364817943,1749252644329,-667.33,0.00021369,2]
[364817944,1749252644338,-758.27,0.00021369,2]
[364817945,1749252644348,-692.98,0.00021369,2]
[364817946,1749252644359,-1107.19,0.00021369,2]
[364817947,1749252644370,-250.0,0.00021387,2]
[364817948,1749252644379,-267.43501615,0.00021389,2]
[364817949,1749252644390,-160.0,0.00021433,2]
[364817950,1749252644400,-1592.61610463,0.00021452,5]
[364817951,1749252644410,-904.219501,0.00021461,3]
[364817952,1749252644419,-215.0738,0.00021572,2]
[364817953,1749252644429,-587.0,0.00021591,2]
[364817954,1749252644439,-286.58,0.000216,2]
[364817955,1749252644448,-1592.61610463,0.00021624,5]
[364817956,1749252644458,-440.0,0.00021643,2]
[364817957,1749252644470,-440.0,0.00021643,2]
[364817958,1749252644480,-952.99,0.00021643,2]
[364817959,1749252644489,-1486.63,0.00021643,2]
[364817960,1749252644499,-706.66,0.00021643,2]
[364817961,1749252644509,-1429.91,0.00021643,2]
[364817962,1749252644520,-581.43,0.00021643,2]
[364817963,1749252644531,-458.87,0.00021643,2]
[364817964,1749252644541,-792.69,0.00021643,2]
[364817965,1749252644551,-580.83,0.00021643,2]
[364817966,1749252644561,-839.32,0.00021643,2]
[364817967,1749252644570,-296.24,0.00021643,2]
[364817968,1749252644579,-1731.07,0.00021643,2]
[364817969,1749252644589,-1647.03,0.00021643,2]
[364817970,1749252644599,-667.33,0.00021643,2]
[364817971,1749252644608,-758.27,0.00021643,2]
[364817972,1749252644618,-692.98,0.00021643,2]
[364817973,1749252644627,-1107.19,0.00021643,2]
[364817974,1749252644637,-156.04514171,0.00021766,2]
[364817975,1749252644647,-1592.61610463,0.00021797,6]
[364817976,1749252644657,-1045.62,0.000218,2]
[364817977,1749252644668,-8546.1719631,0.000218,2]
[364817978,1749252644678,-151.0,0.000218,2]
[364817979,1749252644688,-400.0,0.00021917,2]
[364817980,1749252644697,-400.0,0.00021917,2]
[364817981,1749252644707,-400.0,0.00021917,2]
[364817982,1749252644717,-400.0,0.00021917,2]
[364817983,1749252644727,-400.0,0.00021917,2]
[364817984,1749252644737,-400.0,0.00021917,2]
[364817985,1749252644746,-400.0,0.00021917,2]
[364817986,1749252644756,-400.0,0.00021917,2]
[364817987,1749252644767,-400.0,0.00021917,2]
[364817988,1749252644777,-314.08,0.00021917,2]
[364817989,1749252644788,-500.0,0.00021917,2]
[364817990,1749252644797,-440.0,0.00021917,2]
[364817991,1749252644806,-440.0,0.00021917,2]
[364817992,1749252644816,-500.0,0.00021917,2]
[364817993,1749252644825,-500.0,0.00021917,2]
[364817994,1749252644834,-500.0,0.00021917,2]
[364817995,1749252644844,-500.0,0.00021917,2]
[364817996,1749252644854,-500.0,0.00021917,2]
[364817997,1749252644865,-500.0,0.00021917,2]
[364817998,1749252644875,-500.0,0.00021917,2]
[364817999,1749252644885,-500.0,0.00021917,2]
[364818000,1749252644895,-367.90680375,0.00021917,2]
[364818001,1749252644905,-952.99,0.00021917,2]
[364818002,1749252644915,-1486.63,0.00021917,2]
[364818003,1749252644924,-706.66,0.00021917,2]
[364818004,1749252644934,-1429.91,0.00021917,2]
[364818005,1749252644944,-581.43,0.00021917,2]
[364818006,1749252644955,-458.87,0.00021917,2]
[364818007,1749252644965,-792.69,0.00021917,2]
[364818008,1749252644975,-580.83,0.00021917,2]
[364818009,1749252644984,-839.32,0.00021917,2]
[364818010,1749252644994,-500.0,0.00021917,2]
[364818011,1749252645004,-500.0,0.00021917,2]
[364818012,1749252645014,-500.0,0.00021917,2]
[364818013,1749252645024,-500.0,0.00021917,2]
[364818014,1749252645033,-500.0,0.00021917,2]
[364818015,1749252645043,-500.0,0.00021917,2]
[364818016,1749252645052,-500.0,0.00021917,2]
[364818017,1749252645061,-500.0,0.00021917,2]
[364818018,1749252645071,-500.0,0.00021917,2]
[364818019,1749252645080,-1731.07,0.00021917,2]
[364818020,1749252645090,-500.0,0.00021917,2]
[364818021,1749252645100,-500.0,0.00021917,2]
[364818022,1749252645110,-1647.03,0.00021917,2]
[364818023,1749252645119,-667.33,0.00021917,2]
[364818024,1749252645129,-758.27,0.00021917,2]
[364818025,1749252645139,-692.98,0.00021917,2]
[364818026,1749252645149,-1107.19,0.00021917,2]
[364818027,1749252645158,-1592.61610463,0.00021969,6]
[364818028,1749252645167,-500.0,0.00021973,2]
[364818029,1749252645177,-600.0,0.00021973,2]
[364818030,1749252645186,-200.0,0.00021973,2]
[364818031,1749252645196,-500.0,0.00021973,2]
[364818032,1749252645205,-500.0,0.00021973,2]
[364818033,1749252645215,-500.0,0.00021973,2]
[364818034,1749252645225,-500.0,0.00021973,2]
[364818035,1749252645235,-565.46220978,0.00021973,2]
[364818036,1749252645245,-500.0,0.00021973,2]
[364818037,1749252645256,-500.0,0.00021973,2]
[364818038,1749252645266,-151.0,0.00021999,7]
[364818039,1749252645276,-151.0,0.00021999,7]
[364818040,1749252645287,-350.58449265,0.00022,2]
[364818041,1749252645297,-10000.0,0.00022,2]
[364818042,1749252645308,-61292.07876393,0.00022,2]
[364818044,1749252645484,150.0,0.00016593,2]
[364818045,1749252645664,-150.0,0.00018101,2]
[364818046,1749252645675,-330.60566109,0.00019178,2]
[364818047,1749252645684,-440.0,0.00019178,2]
[364818048,1749252645695,-324.1619295,0.00019178,2]
[364818049,1749252645704,-490.81705909,0.00019452,2]
[364818050,1749252645714,-150.0,0.0001961,2]
[364818051,1749252645725,-150.0,0.00021118,2]
[364818052,1749252645735,-125150.73005464,0.00022,2]
[364818053,1749252645744,-152.303192,0.00022,7]
[364818054,1749252645754,-798.0,0.00022,7]
[364818055,1749252645763,-798.0,0.00022,7]
[364818056,1749252645773,-302.318448,0.00022,2]
[364818057,1749252645783,-302.318448,0.00022,2]
[364818058,1749252645792,-151.0,0.00022,7]
[364818059,1749252645803,-151.0,0.00022,7]
[364818060,1749252645814,-151.0,0.00022,7]
[364818061,1749252645824,-660.09,0.00022,7]
[364818062,1749252645834,-151.0,0.00022,7]
[364818063,1749252645844,-42645.17,0.00022,2]
[364818064,1749252645854,-206.0,0.0002202,2]
[364818065,1749252645863,-153.0,0.000221,3]
[364818066,1749252645874,-153.0,0.000221,3]
[364818067,1749252645884,-153.0,0.000221,3]
[364818068,1749252645894,-153.0,0.000221,3]
[364818069,1749252645904,-154.20873316,0.000221,3]
[364818070,1749252645914,-316.0,0.000221,3]
[364818071,1749252645923,-316.0,0.000221,3]
[364818072,1749252645933,-316.0,0.000221,3]
[364818073,1749252645942,-316.0,0.000221,3]
[364818074,1749252645952,-316.0,0.000221,3]
[364818075,1749252645962,-316.0,0.000221,3]
[364818076,1749252645971,-316.0,0.000221,3]
[364818077,1749252645981,-316.0,0.000221,3]
[364818078,1749252645991,-316.0,0.000221,3]
[364818079,1749252646002,-1592.61610463,0.00022141,6]
[364818080,1749252646012,-440.0,0.00022191,2]
[364818081,1749252646021,-1486.63,0.00022191,2]
[364818082,1749252646031,-706.66,0.00022191,2]
[364818083,1749252646041,-1429.91,0.00022191,2]
[364818084,1749252646051,-581.43,0.00022191,2]
[364818085,1749252646062,-458.87,0.00022191,2]
[364818086,1749252646071,-792.69,0.00022191,2]
[364818087,1749252646083,-580.83,0.00022191,2]
[364818088,1749252646093,-839.32,0.00022191,2]
[364818089,1749252646103,-1731.07,0.00022191,2]
[364818090,1749252646113,-500.0,0.00022191,2]
[364818091,1749252646122,-1647.03,0.00022191,2]
[364818092,1749252646132,-667.33,0.00022191,2]
[364818093,1749252646142,-758.27,0.00022191,2]
[364818094,1749252646152,-692.98,0.00022191,2]
[364818095,1749252646162,-1107.19,0.00022191,2]
[364818096,1749252646171,-180.23566636,0.000222,69]
[364818097,1749252646181,-1000.0,0.00022244,2]
[364818098,1749252646190,-1592.61610463,0.00022314,7]
[364818099,1749252646200,-206.0,0.0002238,2]
[364818100,1749252646209,-405.0,0.00022411,2]
[364818101,1749252646314,-440.0,0.00022465,2]
[364818102,1749252646325,-1486.63,0.00022465,2]
[364818103,1749252646334,-706.66,0.00022465,2]
[364818104,1749252646344,-1429.91,0.00022465,2]
[364818105,1749252646352,-581.43,0.00022465,2]
[364818106,1749252646361,-458.87,0.00022465,2]
[364818107,1749252646373,-792.69,0.00022465,2]
[364818108,1749252646382,-580.83,0.00022465,2]
[364818109,1749252646392,-839.32,0.00022465,2]
[364818110,1749252646401,-1731.07,0.00022465,2]
[364818111,1749252646410,-500.0,0.00022465,2]
[364818112,1749252646418,-1647.03,0.00022465,2]
[364818113,1749252646427,-667.33,0.00022465,2]
[364818114,1749252646436,-758.27,0.00022465,2]
[364818115,1749252646445,-692.98,0.00022465,2]
[364818116,1749252646453,-1107.19,0.00022465,2]
[364818117,1749252646462,-1592.61610463,0.00022486,7]
[364818118,1749252646474,-500.0,0.00022521,2]
[364818119,1749252646483,-1200.0,0.00022521,2]
[364818120,1749252646492,-1000.0,0.00022521,2]
[364818121,1749252646500,-1000.0,0.00022521,2]
[364818122,1749252646511,-267.43501615,0.00022545,2]
[364818123,1749252646520,-151.0,0.0002259,7]
[364818124,1749252646529,-150.0,0.00022627,2]
[364818125,1749252646537,-1592.61610463,0.00022659,7]
[364818126,1749252646548,-212.976918,0.00022714,3]
[364818127,1749252646557,-491.08,0.00022739,2]
[364818128,1749252646566,-1486.63,0.00022739,2]
[364818129,1749252646574,-706.66,0.00022739,2]
[364818130,1749252646583,-1429.91,0.00022739,2]
[364818131,1749252646592,-581.43,0.00022739,2]
[364818132,1749252646601,-458.87,0.00022739,2]
[364818133,1749252646610,-792.69,0.00022739,2]
[364818134,1749252646619,-580.83,0.00022739,2]
[364818135,1749252646629,-839.32,0.00022739,2]
[364818136,1749252646639,-1731.07,0.00022739,2]
[364818137,1749252646648,-500.0,0.00022739,2]